[Event "December 19 Early 2023"]
[Site "https://www.chess.com"]
[Date "2023.12.19"]
[Round "4"]
[White "Stillger, Bernhard"]
[Black "Lund, Gunnar"]
[Result "1/2-1/2"]
[Board "141"]
[TimeControl "180+1"]
[WhiteFideId "4610768"]
[BlackFideId "1520814"]
[WhiteElo "2252"]
[BlackElo "2233"]
[WhiteTeam "GER"]
[BlackTeam "NOR"]
[WhiteClock "0:00:01"]
[BlackClock "0:00:08"]

1. Nf3 {[%clk 0:03:00]}  h6 {[%clk 0:03:00]} 2. e4 {[%clk 0:02:56]}  a6 {[%clk 0:03:01]} 3. d4 {[%clk 0:02:56]}  e6 {[%clk 0:03:02]} 4. c4 {[%clk 0:02:55]}  d6 {[%clk 0:03:03]} 5. Nc3 {[%clk 0:02:54]}  Nc6 {[%clk 0:03:03]} 6. Be3 {[%clk 0:02:54]}  Bd7 {[%clk 0:03:02]} 7. d5 {[%clk 0:02:50]}  Ne5 {[%clk 0:03:01]} 8. Nxe5 {[%clk 0:02:49]}  dxe5 {[%clk 0:03:02]} 9. c5 {[%clk 0:02:38]}  Nf6 {[%clk 0:03:00]} 10. Bc4 {[%clk 0:02:35]}  exd5 {[%clk 0:02:57]} 11. exd5 {[%clk 0:02:35]}  b6 {[%clk 0:02:54]} 12. c6 {[%clk 0:02:09]}  Bc8 {[%clk 0:02:52]} 13. O-O {[%clk 0:02:08]}  Bd6 {[%clk 0:02:48]} 14. h3 {[%clk 0:02:07]}  O-O {[%clk 0:02:45]} 15. a4 {[%clk 0:02:00]}  Bf5 {[%clk 0:02:35]} 16. Qf3 {[%clk 0:01:58]}  Bg6 {[%clk 0:02:33]} 17. Qe2 {[%clk 0:01:52]}  Qc8 {[%clk 0:02:32]} 18. f4 {[%clk 0:01:45]}  exf4 {[%clk 0:02:32]} 19. Bxf4 {[%clk 0:01:45]}  Re8 {[%clk 0:02:31]} 20. Qd2 {[%clk 0:01:40]}  Qd8 {[%clk 0:02:20]} 21. b3 {[%clk 0:01:33]}  Bb4 {[%clk 0:02:18]} 22. Qb2 {[%clk 0:01:05]}  Bxc3 {[%clk 0:02:05]} 23. Qxc3 {[%clk 0:01:04]}  Nxd5 {[%clk 0:02:06]} 24. Qg3 {[%clk 0:01:01]}  Nxf4 {[%clk 0:02:05]} 25. Rxf4 {[%clk 0:00:58]}  Qd6 {[%clk 0:02:04]} 26. Raf1 {[%clk 0:00:56]}  Re7 {[%clk 0:02:02]} 27. Qg4 {[%clk 0:00:46]}  Qxc6 {[%clk 0:01:54]} 28. Rf6 {[%clk 0:00:40]}  Qc5+ {[%clk 0:01:32]} 29. Kh1 {[%clk 0:00:40]}  Kh8 {[%clk 0:01:13]} 30. R6f4 {[%clk 0:00:36]}  Qg5 {[%clk 0:00:50]} 31. Qf3 {[%clk 0:00:33]}  Rf8 {[%clk 0:00:46]} 32. Bxa6 {[%clk 0:00:32]}  Bh5 {[%clk 0:00:40]} 33. Qf2 {[%clk 0:00:32]}  f6 {[%clk 0:00:38]} 34. Bc4 {[%clk 0:00:32]}  Bf7 {[%clk 0:00:36]} 35. Rg4 {[%clk 0:00:31]}  Qe5 {[%clk 0:00:33]} 36. Rf4 {[%clk 0:00:24]}  Bxc4 {[%clk 0:00:32]} 37. Rxc4 {[%clk 0:00:23]}  Rfe8 {[%clk 0:00:32]} 38. Qf4 {[%clk 0:00:21]}  Qxf4 {[%clk 0:00:32]} 39. Rfxf4 {[%clk 0:00:20]}  Rd8 {[%clk 0:00:30]} 40. Rc6 {[%clk 0:00:20]}  Rd3 {[%clk 0:00:29]} 41. b4 {[%clk 0:00:20]}  Ra3 {[%clk 0:00:28]} 42. b5 {[%clk 0:00:20]}  Kg8 {[%clk 0:00:28]} 43. Rfc4 {[%clk 0:00:20]}  Rg3 {[%clk 0:00:14]} 44. Rxc7 {[%clk 0:00:18]}  Re2 {[%clk 0:00:14]} 45. Rg4 {[%clk 0:00:15]}  Rxg4 {[%clk 0:00:12]} 46. hxg4 {[%clk 0:00:15]}  Re4 {[%clk 0:00:12]} 47. a5 {[%clk 0:00:16]}  bxa5 {[%clk 0:00:12]} 48. b6 {[%clk 0:00:16]}  Rb4 {[%clk 0:00:12]} 49. Ra7 {[%clk 0:00:13]}  Rxb6 {[%clk 0:00:09]} 50. Rxa5 {[%clk 0:00:14]}  Rb4 {[%clk 0:00:10]} 51. g5 {[%clk 0:00:14]}  hxg5 {[%clk 0:00:09]} 52. Kh2 {[%clk 0:00:14]}  Kh7 {[%clk 0:00:09]} 53. Kg3 {[%clk 0:00:15]}  Kg6 {[%clk 0:00:09]} 54. Ra8 {[%clk 0:00:15]}  Rb3+ {[%clk 0:00:09]} 55. Kf2 {[%clk 0:00:14]}  Rb4 {[%clk 0:00:10]} 56. Kf3 {[%clk 0:00:15]}  Rb5 {[%clk 0:00:11]} 57. Ra7 {[%clk 0:00:14]}  Rb6 {[%clk 0:00:11]} 58. Kf2 {[%clk 0:00:14]}  Rc6 {[%clk 0:00:05]} 59. Rb7 {[%clk 0:00:14]}  Rc2+ {[%clk 0:00:05]} 60. Kf3 {[%clk 0:00:14]}  Rc3+ {[%clk 0:00:01]} 61. Kf2 {[%clk 0:00:14]}  Rc2+ {[%clk 0:00:02]} 62. Kf1 {[%clk 0:00:14]}  Rc3 {[%clk 0:00:03]} 63. Kf2 {[%clk 0:00:13]}  Rc5 {[%clk 0:00:03]} 64. Kf3 {[%clk 0:00:14]}  Rf5+ {[%clk 0:00:04]} 65. Kg3 {[%clk 0:00:13]}  Rf4 {[%clk 0:00:05]} 66. Rc7 {[%clk 0:00:13]}  Kh6 {[%clk 0:00:06]} 67. Kh3 {[%clk 0:00:13]}  Kg6 {[%clk 0:00:07]} 68. g3 {[%clk 0:00:13]}  Re4 {[%clk 0:00:07]} 69. Kg2 {[%clk 0:00:13]}  g4 {[%clk 0:00:08]} 70. Kf2 {[%clk 0:00:14]}  Re5 {[%clk 0:00:09]} 71. Rc6 {[%clk 0:00:14]}  Kg5 {[%clk 0:00:09]} 72. Ra6 {[%clk 0:00:14]}  g6 {[%clk 0:00:10]} 73. Ra7 {[%clk 0:00:14]}  f5 {[%clk 0:00:11]} 74. Ra6 {[%clk 0:00:15]}  Rc5 {[%clk 0:00:11]} 75. Rb6 {[%clk 0:00:15]}  Rc2+ {[%clk 0:00:11]} 76. Kf1 {[%clk 0:00:14]}  Rc3 {[%clk 0:00:12]} 77. Kf2 {[%clk 0:00:14]}  Rc2+ {[%clk 0:00:12]} 78. Kf1 {[%clk 0:00:14]}  Ra2 {[%clk 0:00:13]} 79. Kg1 {[%clk 0:00:13]}  Kh5 {[%clk 0:00:14]} 80. Kh1 {[%clk 0:00:13]}  g5 {[%clk 0:00:14]} 81. Rf6 {[%clk 0:00:11]}  Rf2 {[%clk 0:00:14]} 82. Kg1 {[%clk 0:00:12]}  Rf3 {[%clk 0:00:15]} 83. Kg2 {[%clk 0:00:11]}  f4 {[%clk 0:00:15]} 84. gxf4 {[%clk 0:00:11]}  gxf4 {[%clk 0:00:16]} 85. Rf5+ {[%clk 0:00:11]}  Kh4 {[%clk 0:00:16]} 86. Rf8 {[%clk 0:00:11]}  Rg3+ {[%clk 0:00:16]} 87. Kf2 {[%clk 0:00:11]}  Rf3+ {[%clk 0:00:17]} 88. Kg2 {[%clk 0:00:11]}  Kg5 {[%clk 0:00:18]} 89. Rg8+ {[%clk 0:00:11]}  Kf5 {[%clk 0:00:18]} 90. Rf8+ {[%clk 0:00:11]}  Ke5 {[%clk 0:00:19]} 91. Re8+ {[%clk 0:00:12]}  Kd4 {[%clk 0:00:19]} 92. Rd8+ {[%clk 0:00:11]}  Ke3 {[%clk 0:00:19]} 93. Re8+ {[%clk 0:00:12]}  Kd2 {[%clk 0:00:20]} 94. Rg8 {[%clk 0:00:12]}  Rg3+ {[%clk 0:00:19]} 95. Kf2 {[%clk 0:00:12]}  Kd3 {[%clk 0:00:19]} 96. Rd8+ {[%clk 0:00:11]}  Ke4 {[%clk 0:00:19]} 97. Re8+ {[%clk 0:00:12]}  Kd4 {[%clk 0:00:20]} 98. Rd8+ {[%clk 0:00:12]}  Ke5 {[%clk 0:00:20]} 99. Re8+ {[%clk 0:00:13]}  Kd5 {[%clk 0:00:19]} 100. Rd8+ {[%clk 0:00:12]}  Kc4 {[%clk 0:00:19]} 101. Rf8 {[%clk 0:00:12]}  Rf3+ {[%clk 0:00:18]} 102. Ke2 {[%clk 0:00:12]}  Re3+ {[%clk 0:00:16]} 103. Kf2 {[%clk 0:00:11]}  Re4 {[%clk 0:00:16]} 104. Rf5 {[%clk 0:00:08]}  Rd4 {[%clk 0:00:16]} 105. Rg5 {[%clk 0:00:08]}  g3+ {[%clk 0:00:15]} 106. Kf3 {[%clk 0:00:09]}  Kd3 {[%clk 0:00:16]} 107. Ra5 {[%clk 0:00:08]}  Rc4 {[%clk 0:00:14]} 108. Ra3+ {[%clk 0:00:07]}  Rc3 {[%clk 0:00:14]} 109. Ra4 {[%clk 0:00:07]}  Kd2+ {[%clk 0:00:14]} 110. Kxf4 {[%clk 0:00:06]}  g2 {[%clk 0:00:14]} 111. Ra2+ {[%clk 0:00:06]}  Rc2 {[%clk 0:00:14]} 112. Ra1 {[%clk 0:00:01]}  Rc1 {[%clk 0:00:15]} 113. Ra2+ {[%clk 0:00:01]}  Rc2 {[%clk 0:00:14]} 114. Ra1 {[%clk 0:00:02]}  Rc3 {[%clk 0:00:08]} 115. Ra2+ {[%clk 0:00:01]}  Rc2 {[%clk 0:00:08]} 1/2-1/2

[Event "December 19 Early 2023"]
[Site "https://www.chess.com"]
[Date "2023.12.19"]
[Round "4"]
[White "Leve, Nitai"]
[Black "Kvaloy, Aksel Bu"]
[Result "0-1"]
[Board "144"]
[TimeControl "180+1"]
[WhiteFideId "2006898"]
[BlackFideId "1528815"]
[WhiteElo "2144"]
[BlackElo "2265"]
[WhiteTeam "USA"]
[BlackTeam "NOR"]
[WhiteClock "0:00:00"]
[BlackClock "0:00:38"]

1. e4 {[%clk 0:02:27]}  e5 {[%clk 0:02:59]} 2. Nf3 {[%clk 0:02:27]}  Nf6 {[%clk 0:03:00]} 3. d4 {[%clk 0:02:26]}  Nxe4 {[%clk 0:03:00]} 4. Nxe5 {[%clk 0:02:27]}  Nc6 {[%clk 0:02:58]} 5. Bd3 {[%clk 0:02:25]}  Nxe5 {[%clk 0:02:55]} 6. Bxe4 {[%clk 0:02:23]}  d5 {[%clk 0:02:55]} 7. dxe5 {[%clk 0:02:18]}  dxe4 {[%clk 0:02:54]} 8. Qxd8+ {[%clk 0:02:19]}  Kxd8 {[%clk 0:02:55]} 9. b3 {[%clk 0:02:09]}  Bb4+ {[%clk 0:02:48]} 10. Ke2 {[%clk 0:02:09]}  b6 {[%clk 0:02:44]} 11. Bb2 {[%clk 0:02:08]}  Ke7 {[%clk 0:02:38]} 12. a3 {[%clk 0:01:56]}  Ba6+ {[%clk 0:02:34]} 13. c4 {[%clk 0:01:33]}  Bc5 {[%clk 0:02:33]} 14. Nd2 {[%clk 0:01:33]}  Ke6 {[%clk 0:02:28]} 15. Nxe4 {[%clk 0:01:26]}  Be7 {[%clk 0:02:25]} 16. Rad1 {[%clk 0:01:20]}  Bb7 {[%clk 0:02:24]} 17. Ke3 {[%clk 0:01:16]}  Rad8 {[%clk 0:02:20]} 18. f4 {[%clk 0:01:14]}  g6 {[%clk 0:02:18]} 19. g4 {[%clk 0:01:08]}  Rxd1 {[%clk 0:02:13]} 20. Rxd1 {[%clk 0:01:08]}  h5 {[%clk 0:02:13]} 21. f5+ {[%clk 0:00:45]}  gxf5 {[%clk 0:02:09]} 22. gxf5+ {[%clk 0:00:46]}  Kxf5 {[%clk 0:02:07]} 23. Rd7 {[%clk 0:00:33]}  Re8 {[%clk 0:01:49]} 24. Ng3+ {[%clk 0:00:31]}  Ke6 {[%clk 0:01:48]} 25. Rxc7 {[%clk 0:00:31]}  Rb8 {[%clk 0:01:31]} 26. Nxh5 {[%clk 0:00:27]}  Bc5+ {[%clk 0:01:11]} 27. Kf4 {[%clk 0:00:19]}  Bf8 {[%clk 0:00:59]} 28. Kg4 {[%clk 0:00:16]}  Bh6 {[%clk 0:00:58]} 29. b4 {[%clk 0:00:10]}  Rg8+ {[%clk 0:00:55]} 30. Kh4 {[%clk 0:00:08]}  Bg5+ {[%clk 0:00:53]} 31. Kh3 {[%clk 0:00:00]}  Bf3 {[%clk 0:00:38]} 0-1

[Event "December 19 Early 2023"]
[Site "https://www.chess.com"]
[Date "2023.12.19"]
[Round "4"]
[White "Saravana, Krishnan P."]
[Black "Fonseca Manrique, Enrique"]
[Result "1-0"]
[Board "147"]
[TimeControl "180+1"]
[WhiteFideId "5018382"]
[BlackFideId "5114330"]
[WhiteElo "2167"]
[BlackElo "2133"]
[WhiteTeam "IND"]
[BlackTeam "MEX"]
[WhiteClock "0:01:51"]
[BlackClock "0:00:55"]

1. e4 {[%clk 0:02:59]}  c5 {[%clk 0:03:00]} 2. Nf3 {[%clk 0:02:59]}  e6 {[%clk 0:03:00]} 3. d4 {[%clk 0:02:58]}  cxd4 {[%clk 0:03:01]} 4. Nxd4 {[%clk 0:02:59]}  Nc6 {[%clk 0:03:02]} 5. Nc3 {[%clk 0:02:58]}  Qc7 {[%clk 0:03:03]} 6. Ncb5 {[%clk 0:02:57]}  Qb8 {[%clk 0:03:03]} 7. Bd3 {[%clk 0:02:49]}  Nf6 {[%clk 0:03:01]} 8. O-O {[%clk 0:02:47]}  a6 {[%clk 0:02:54]} 9. Nxc6 {[%clk 0:02:46]}  bxc6 {[%clk 0:02:55]} 10. Nc3 {[%clk 0:02:45]}  d5 {[%clk 0:02:55]} 11. Qe2 {[%clk 0:02:42]}  Be7 {[%clk 0:02:50]} 12. f4 {[%clk 0:02:41]}  a5 {[%clk 0:02:48]} 13. Kh1 {[%clk 0:02:41]}  O-O {[%clk 0:02:40]} 14. e5 {[%clk 0:02:39]}  Nd7 {[%clk 0:02:39]} 15. Rf3 {[%clk 0:02:40]}  g6 {[%clk 0:02:39]} 16. Rh3 {[%clk 0:02:36]}  Nc5 {[%clk 0:02:34]} 17. b3 {[%clk 0:02:30]}  Ba6 {[%clk 0:02:26]} 18. Be3 {[%clk 0:02:25]}  Nxd3 {[%clk 0:02:21]} 19. cxd3 {[%clk 0:02:24]}  c5 {[%clk 0:02:12]} 20. Qg4 {[%clk 0:02:18]}  Bxd3 {[%clk 0:01:47]} 21. Qd1 {[%clk 0:02:05]}  Bf5 {[%clk 0:01:45]} 22. g4 {[%clk 0:02:04]}  Bxg4 {[%clk 0:01:34]} 23. Qxg4 {[%clk 0:02:02]}  d4 {[%clk 0:01:34]} 24. Ne4 {[%clk 0:02:02]}  dxe3 {[%clk 0:01:32]} 25. Nf6+ {[%clk 0:02:02]}  Bxf6 {[%clk 0:01:33]} 26. exf6 {[%clk 0:02:02]}  Qb7+ {[%clk 0:01:18]} 27. Kg1 {[%clk 0:02:01]}  Qe4 {[%clk 0:01:14]} 28. Rxh7 {[%clk 0:01:52]}  Qd4 {[%clk 0:00:55]} 29. Rg7+ {[%clk 0:01:51]} 1-0

[Event "December 19 Early 2023"]
[Site "https://www.chess.com"]
[Date "2023.12.19"]
[Round "4"]
[White "Korchynskyi, Mykola"]
[Black "Crispin Ferreras, Darvi Abraham"]
[Result "1-0"]
[Board "152"]
[TimeControl "180+1"]
[WhiteFideId "34138005"]
[BlackFideId "6402771"]
[WhiteElo "2007"]
[BlackElo "2149"]
[WhiteTeam "UKR"]
[BlackTeam "DOM"]
[WhiteClock "0:02:33"]
[BlackClock "0:02:03"]

1. d4 {[%clk 0:03:00]}  Nf6 {[%clk 0:02:57]} 2. c4 {[%clk 0:03:01]}  e6 {[%clk 0:02:56]} 3. Nc3 {[%clk 0:02:50]}  Bb4 {[%clk 0:02:31]} 4. Qc2 {[%clk 0:02:48]}  O-O {[%clk 0:02:30]} 5. a3 {[%clk 0:02:47]}  Bxc3+ {[%clk 0:02:30]} 6. Qxc3 {[%clk 0:02:48]}  d6 {[%clk 0:02:29]} 7. Bg5 {[%clk 0:02:48]}  h6 {[%clk 0:02:29]} 8. Bh4 {[%clk 0:02:48]}  b6 {[%clk 0:02:29]} 9. e3 {[%clk 0:02:48]}  Bb7 {[%clk 0:02:29]} 10. Ne2 {[%clk 0:02:48]}  Nbd7 {[%clk 0:02:29]} 11. Qc2 {[%clk 0:02:47]}  e5 {[%clk 0:02:29]} 12. Rd1 {[%clk 0:02:46]}  Re8 {[%clk 0:02:27]} 13. Nc3 {[%clk 0:02:45]}  exd4 {[%clk 0:02:26]} 14. Rxd4 {[%clk 0:02:46]}  Qe7 {[%clk 0:02:25]} 15. Be2 {[%clk 0:02:43]}  Nc5 {[%clk 0:02:25]} 16. O-O {[%clk 0:02:41]}  Ne6 {[%clk 0:02:25]} 17. Rdd1 {[%clk 0:02:39]}  g5 {[%clk 0:02:23]} 18. Bg3 {[%clk 0:02:37]}  Nc5 {[%clk 0:02:22]} 19. Nd5 {[%clk 0:02:35]}  Bxd5 {[%clk 0:02:21]} 20. cxd5 {[%clk 0:02:36]}  Nce4 {[%clk 0:02:21]} 21. Bd3 {[%clk 0:02:32]}  Nxg3 {[%clk 0:02:21]} 22. hxg3 {[%clk 0:02:32]}  Nxd5 {[%clk 0:02:21]} 23. Bh7+ {[%clk 0:02:32]}  Kg7 {[%clk 0:02:03]} 24. Rxd5 {[%clk 0:02:33]} 1-0

[Event "December 19 Early 2023"]
[Site "https://www.chess.com"]
[Date "2023.12.19"]
[Round "4"]
[White "Horak, Martin"]
[Black "Mesquita, Eduardo Barbosa"]
[Result "1-0"]
[Board "154"]
[TimeControl "180+1"]
[WhiteFideId "367095"]
[BlackFideId "22757163"]
[WhiteElo "2091"]
[BlackElo "1953"]
[WhiteTeam "CZE"]
[BlackTeam "BRA"]
[WhiteClock "0:00:07"]
[BlackClock "0:00:20"]

1. e4 {[%clk 0:03:00]}  c5 {[%clk 0:02:59]} 2. Nf3 {[%clk 0:03:00]}  d6 {[%clk 0:03:00]} 3. d4 {[%clk 0:03:00]}  cxd4 {[%clk 0:03:01]} 4. Qxd4 {[%clk 0:03:00]}  a6 {[%clk 0:03:00]} 5. Be2 {[%clk 0:02:56]}  Nc6 {[%clk 0:03:01]} 6. Qe3 {[%clk 0:02:56]}  g6 {[%clk 0:03:02]} 7. O-O {[%clk 0:02:56]}  Bg7 {[%clk 0:03:03]} 8. h3 {[%clk 0:02:55]}  Nf6 {[%clk 0:03:03]} 9. Rd1 {[%clk 0:02:50]}  Qc7 {[%clk 0:03:01]} 10. Nc3 {[%clk 0:02:49]}  O-O {[%clk 0:03:00]} 11. Qf4 {[%clk 0:02:46]}  e5 {[%clk 0:02:58]} 12. Qh4 {[%clk 0:02:40]}  Re8 {[%clk 0:02:56]} 13. Bg5 {[%clk 0:02:37]}  Nd7 {[%clk 0:02:51]} 14. Nd5 {[%clk 0:02:36]}  Qa5 {[%clk 0:02:51]} 15. c3 {[%clk 0:02:31]}  Rf8 {[%clk 0:02:35]} 16. Ne7+ {[%clk 0:02:24]}  Nxe7 {[%clk 0:02:35]} 17. Bxe7 {[%clk 0:02:25]}  Qb6 {[%clk 0:02:28]} 18. Bxf8 {[%clk 0:02:20]}  Nxf8 {[%clk 0:02:28]} 19. b3 {[%clk 0:02:18]}  Qc6 {[%clk 0:02:27]} 20. Bc4 {[%clk 0:02:11]}  Be6 {[%clk 0:02:25]} 21. Bxe6 {[%clk 0:02:02]}  Nxe6 {[%clk 0:02:25]} 22. Rac1 {[%clk 0:01:50]}  h5 {[%clk 0:02:19]} 23. Qe7 {[%clk 0:01:22]}  Bf8 {[%clk 0:02:18]} 24. Qh4 {[%clk 0:01:17]}  Bh6 {[%clk 0:02:15]} 25. Rc2 {[%clk 0:01:16]}  Nf4 {[%clk 0:02:06]} 26. Qe7 {[%clk 0:00:55]}  Qxe4 {[%clk 0:01:59]} 27. Rcc1 {[%clk 0:00:47]}  Bf8 {[%clk 0:01:59]} 28. Qf6 {[%clk 0:00:41]}  Bg7 {[%clk 0:01:54]} 29. Qxf7+ {[%clk 0:00:40]}  Kxf7 {[%clk 0:01:44]} 30. Ng5+ {[%clk 0:00:40]}  Ke7 {[%clk 0:01:44]} 31. Nxe4 {[%clk 0:00:40]}  Ne2+ {[%clk 0:01:45]} 32. Kf1 {[%clk 0:00:41]}  Nxc1 {[%clk 0:01:45]} 33. Rxc1 {[%clk 0:00:42]}  d5 {[%clk 0:01:44]} 34. Nc5 {[%clk 0:00:33]}  b6 {[%clk 0:01:40]} 35. Nd3 {[%clk 0:00:31]}  Kd6 {[%clk 0:01:40]} 36. Rd1 {[%clk 0:00:30]}  a5 {[%clk 0:01:38]} 37. c4 {[%clk 0:00:22]}  d4 {[%clk 0:01:38]} 38. f3 {[%clk 0:00:22]}  g5 {[%clk 0:01:34]} 39. Ke2 {[%clk 0:00:20]}  g4 {[%clk 0:01:34]} 40. hxg4 {[%clk 0:00:19]}  hxg4 {[%clk 0:01:35]} 41. Rh1 {[%clk 0:00:19]}  Rg8 {[%clk 0:01:23]} 42. Nf2 {[%clk 0:00:15]}  gxf3+ {[%clk 0:01:18]} 43. gxf3 {[%clk 0:00:15]}  Kc5 {[%clk 0:01:19]} 44. Nd3+ {[%clk 0:00:16]}  Kd6 {[%clk 0:01:16]} 45. Nf2 {[%clk 0:00:16]}  Kc6 {[%clk 0:01:10]} 46. Ne4 {[%clk 0:00:15]}  a4 {[%clk 0:00:55]} 47. Rg1 {[%clk 0:00:14]}  d3+ {[%clk 0:00:49]} 48. Kxd3 {[%clk 0:00:12]}  Rd8+ {[%clk 0:00:49]} 49. Kc3 {[%clk 0:00:09]}  Bf8 {[%clk 0:00:43]} 50. Rg6+ {[%clk 0:00:09]}  Kb7 {[%clk 0:00:42]} 51. b4 {[%clk 0:00:09]}  Rd1 {[%clk 0:00:41]} 52. Rf6 {[%clk 0:00:08]}  Rd8 {[%clk 0:00:35]} 53. Rf7+ {[%clk 0:00:08]}  Ka6 {[%clk 0:00:34]} 54. a3 {[%clk 0:00:09]}  Bh6 {[%clk 0:00:20]} 55. b5+ {[%clk 0:00:07]}  Ka5 {[%clk 0:00:20]} 56. Ra7# {[%clk 0:00:07]} 1-0

[Event "December 19 Early 2023"]
[Site "https://www.chess.com"]
[Date "2023.12.19"]
[Round "4"]
[White "Skibbe, Willi"]
[Black "Goltseva, Ekaterina"]
[Result "0-1"]
[Board "156"]
[TimeControl "180+1"]
[WhiteFideId "4682190"]
[BlackFideId "24173770"]
[WhiteElo "2354"]
[BlackElo "2139"]
[WhiteTeam "GER"]
[BlackTeam "RUS"]
[WhiteClock "0:00:12"]
[BlackClock "0:00:56"]

1. d4 {[%clk 0:03:00]}  d5 {[%clk 0:03:00]} 2. c4 {[%clk 0:03:00]}  dxc4 {[%clk 0:03:00]} 3. Nf3 {[%clk 0:02:58]}  a6 {[%clk 0:03:00]} 4. e3 {[%clk 0:02:56]}  Bg4 {[%clk 0:03:00]} 5. Bxc4 {[%clk 0:02:55]}  e6 {[%clk 0:03:00]} 6. Nbd2 {[%clk 0:02:53]}  Nf6 {[%clk 0:03:00]} 7. h3 {[%clk 0:02:50]}  Bh5 {[%clk 0:03:00]} 8. g4 {[%clk 0:02:48]}  Bg6 {[%clk 0:03:00]} 9. Ne5 {[%clk 0:02:48]}  Be4 {[%clk 0:03:00]} 10. Nxe4 {[%clk 0:02:48]}  Nxe4 {[%clk 0:03:01]} 11. Qf3 {[%clk 0:02:45]}  Nd6 {[%clk 0:02:58]} 12. Bd3 {[%clk 0:02:38]}  f6 {[%clk 0:02:56]} 13. Nc4 {[%clk 0:02:37]}  Nc6 {[%clk 0:02:54]} 14. O-O {[%clk 0:02:35]}  Be7 {[%clk 0:02:47]} 15. Nxd6+ {[%clk 0:02:35]}  Qxd6 {[%clk 0:02:47]} 16. b3 {[%clk 0:02:22]}  O-O {[%clk 0:02:41]} 17. Bb2 {[%clk 0:02:15]}  Nb4 {[%clk 0:02:25]} 18. Bb1 {[%clk 0:02:01]}  Nd5 {[%clk 0:02:24]} 19. e4 {[%clk 0:01:52]}  Nf4 {[%clk 0:02:24]} 20. Rd1 {[%clk 0:01:33]}  Rad8 {[%clk 0:02:23]} 21. Bc2 {[%clk 0:01:31]}  g5 {[%clk 0:02:15]} 22. Rac1 {[%clk 0:01:28]}  Rf7 {[%clk 0:02:02]} 23. e5 {[%clk 0:01:18]}  fxe5 {[%clk 0:01:56]} 24. dxe5 {[%clk 0:01:18]}  Qb6 {[%clk 0:01:55]} 25. Rxd8+ {[%clk 0:01:04]}  Bxd8 {[%clk 0:01:56]} 26. Rd1 {[%clk 0:01:05]}  Be7 {[%clk 0:01:35]} 27. Rd2 {[%clk 0:00:20]}  Bc5 {[%clk 0:01:10]} 28. Qe4 {[%clk 0:00:17]}  Bxf2+ {[%clk 0:00:57]} 29. Rxf2 {[%clk 0:00:15]}  Nxh3+ {[%clk 0:00:56]} 30. Kh2 {[%clk 0:00:15]}  Qxf2+ {[%clk 0:00:55]} 31. Kxh3 {[%clk 0:00:14]}  Rf3+ {[%clk 0:00:55]} 32. Qxf3 {[%clk 0:00:13]}  Qxf3+ {[%clk 0:00:56]} 33. Kh2 {[%clk 0:00:12]}  Qf2+ {[%clk 0:00:56]} 0-1

[Event "December 19 Early 2023"]
[Site "https://www.chess.com"]
[Date "2023.12.19"]
[Round "4"]
[White "Borawski, Jakub"]
[Black "Pesotskiy, Mikhail"]
[Result "1-0"]
[Board "157"]
[TimeControl "180+1"]
[WhiteFideId "1143000"]
[BlackFideId "34164453"]
[WhiteElo "2052"]
[BlackElo "2078"]
[WhiteTeam "POL"]
[BlackTeam "RUS"]
[WhiteClock "0:00:56"]
[BlackClock "0:00:00"]

1. f4 {[%clk 0:03:00]}  e6 {[%clk 0:03:00]} 2. e3 {[%clk 0:03:00]}  c5 {[%clk 0:03:00]} 3. b3 {[%clk 0:03:00]}  d5 {[%clk 0:03:01]} 4. Bb2 {[%clk 0:03:00]}  Nf6 {[%clk 0:03:01]} 5. Bb5+ {[%clk 0:02:59]}  Bd7 {[%clk 0:03:01]} 6. Bxd7+ {[%clk 0:02:59]}  Nbxd7 {[%clk 0:03:02]} 7. Nf3 {[%clk 0:03:00]}  Bd6 {[%clk 0:03:03]} 8. O-O {[%clk 0:02:59]}  Qc7 {[%clk 0:03:03]} 9. d4 {[%clk 0:02:54]}  cxd4 {[%clk 0:02:59]} 10. Nxd4 {[%clk 0:02:54]}  Ne4 {[%clk 0:02:59]} 11. Nb5 {[%clk 0:02:49]}  Qb6 {[%clk 0:02:59]} 12. Nxd6+ {[%clk 0:02:48]}  Nxd6 {[%clk 0:02:58]} 13. Bd4 {[%clk 0:02:47]}  Qc6 {[%clk 0:02:52]} 14. Nd2 {[%clk 0:02:46]}  Nf5 {[%clk 0:02:47]} 15. Nf3 {[%clk 0:02:40]}  O-O {[%clk 0:02:46]} 16. Rc1 {[%clk 0:02:35]}  Nxd4 {[%clk 0:02:38]} 17. Qxd4 {[%clk 0:02:24]}  Qa6 {[%clk 0:02:28]} 18. a4 {[%clk 0:02:20]}  Rfd8 {[%clk 0:02:24]} 19. f5 {[%clk 0:02:06]}  Nf6 {[%clk 0:02:05]} 20. fxe6 {[%clk 0:01:55]}  Qxe6 {[%clk 0:02:05]} 21. Ng5 {[%clk 0:01:55]}  Qe7 {[%clk 0:02:06]} 22. Rf3 {[%clk 0:01:46]}  h6 {[%clk 0:02:02]} 23. Nh3 {[%clk 0:01:44]}  Re8 {[%clk 0:01:59]} 24. Rcf1 {[%clk 0:01:43]}  Qe4 {[%clk 0:01:59]} 25. Nf4 {[%clk 0:01:39]}  Qxd4 {[%clk 0:01:59]} 26. exd4 {[%clk 0:01:39]}  Rac8 {[%clk 0:01:59]} 27. c3 {[%clk 0:01:33]}  Ne4 {[%clk 0:01:47]} 28. Nxd5 {[%clk 0:01:06]}  Nd2 {[%clk 0:01:46]} 29. Rxf7 {[%clk 0:01:06]}  Nxf1 {[%clk 0:01:47]} 30. Rxf1 {[%clk 0:01:06]}  Kh8 {[%clk 0:01:45]} 31. Rf7 {[%clk 0:01:04]}  Red8 {[%clk 0:01:45]} 32. c4 {[%clk 0:01:04]}  Rb8 {[%clk 0:01:39]} 33. h4 {[%clk 0:00:57]}  a6 {[%clk 0:00:00]} 34. a5 {[%clk 0:00:56]} 1-0